bitfinex/quotes_BTCUSD_20250420
["timestamp","ask_amount","ask_price","bid_price","bid_amount"]
[1745188666842,0.0008418,84605.0,84594.0,1.17565363]
[1745188667057,0.0008418,84605.0,84595.0,0.1919558]
[1745188667254,0.0008418,84605.0,84595.0,0.06184025]
[1745188667801,0.0008418,84605.0,84595.0,0.20699605]
[1745188668226,0.0008418,84605.0,84596.0,0.03057612]
[1745188668425,0.0008418,84605.0,84595.0,0.20799605]
[1745188668630,0.0008418,84605.0,84597.0,0.01498147]
[1745188668823,0.0008418,84605.0,84596.0,0.34]
[1745188669030,0.0008418,84605.0,84598.0,0.01498147]
[1745188669388,0.0008418,84605.0,84596.0,0.341]
[1745188669505,0.0008418,84605.0,84599.0,0.01498147]
[1745188669705,0.0008418,84605.0,84597.0,0.0496]
[1745188669945,0.0008418,84605.0,84600.0,0.01498147]
[1745188670164,0.0008418,84605.0,84597.0,0.0506]
[1745188670686,0.0008418,84605.0,84598.0,0.01498147]
[1745188672866,0.0008418,84605.0,84598.0,0.01598147]
[1745188674997,0.0008418,84605.0,84598.0,0.01498147]
[1745188681816,0.11944791,84604.0,84598.0,0.01498147]
[1745188682033,0.0451,84602.0,84598.0,0.01498147]
[1745188682258,0.12240321,84601.0,84599.0,0.11505982]
[1745188682501,0.4733206,84601.0,84599.0,0.11505982]
[1745188682729,0.4713653,84601.0,84599.0,0.11505982]
[1745188683826,0.11944791,84600.0,84599.0,0.11505982]
[1745188684006,0.12240316,84600.0,84599.0,0.11505982]
[1745188684216,0.12340316,84600.0,84599.0,0.11505982]
[1745188686995,0.12240316,84600.0,84599.0,0.11505982]
[1745188688240,0.47332055,84600.0,84599.0,0.11505982]
[1745188688442,0.4703653,84600.0,84599.0,0.11505982]
[1745188710602,0.35091739,84600.0,84599.0,0.11505982]
[1745188711002,0.35091739,84600.0,84599.0,0.16225982]
[1745188711226,0.35091739,84600.0,84599.0,0.17514831]
[1745188711659,0.0008418,84605.0,84599.0,0.17514831]
[1745188711833,0.12028971,84605.0,84599.0,0.17414831]
[1745188713286,0.0008418,84605.0,84599.0,0.17414831]
[1745188723907,0.12028971,84605.0,84599.0,0.12694831]
[1745188724108,0.12028971,84605.0,84599.0,0.02674831]
[1745188724323,0.12028971,84605.0,84600.0,0.10016]
[1745188724729,0.12028971,84605.0,84601.0,0.01494073]
[1745188726063,0.12033478,84605.0,84601.0,0.01494073]
[1745188733265,0.12033478,84605.0,84602.0,1.01212]
[1745188733753,0.12033478,84605.0,84603.0,0.01494073]
[1745188734115,0.12033478,84605.0,84602.0,1.01212]
[1745188734772,0.00088687,84605.0,84604.0,0.0469]
[1745188735249,0.00088687,84605.0,84604.0,0.10944222]
[1745188745473,0.00088687,84605.0,84604.0,0.01494222]
[1745188745923,0.00088687,84605.0,84604.0,0.11502222]
[1745188767779,0.12033478,84605.0,84604.0,0.11502222]
[1745188786673,0.12033478,84605.0,84604.0,0.1223952]
[1745188790233,0.12033478,84605.0,84604.0,0.11502222]
[1745188802974,0.12033478,84605.0,84604.0,0.11494222]
[1745188803291,0.12328972,84605.0,84604.0,0.11494222]
[1745188803414,0.12328972,84605.0,84604.0,0.01494222]
[1745188803621,0.12328972,84605.0,84604.0,0.11494222]
[1745188803828,0.12328972,84605.0,84604.0,0.1]
[1745188804023,0.12328972,84605.0,84604.0,0.11484384]
[1745188808429,0.47420711,84605.0,84604.0,0.11484384]
[1745188808625,0.47125217,84605.0,84604.0,0.11484384]
[1745188822636,0.47125217,84605.0,84604.0,1.12696384]
[1745188831541,0.47125217,84605.0,84604.0,1.13307459]
[1745188846444,0.47125217,84605.0,84604.0,0.12095459]
[1745188862017,0.51785217,84605.0,84604.0,0.12095459]
[1745188862220,0.51885217,84605.0,84604.0,0.12087459]
[1745188874131,0.51785217,84605.0,84604.0,0.12087459]
[1745188874353,0.47125217,84605.0,84604.0,0.12087459]
[1745188879195,0.47125217,84605.0,84604.0,1.13303459]
[1745188908562,0.35180426,84605.0,84604.0,1.13403459]
[1745188908761,0.35180426,84605.0,84604.0,1.18313459]
[1745188910985,0.35180426,84605.0,84604.0,1.23193459]
[1745188911559,0.35180426,84605.0,84604.0,1.26243582]
[1745188912492,0.35180426,84605.0,84604.0,1.60243582]
[1745188913240,0.00088687,84605.0,84604.0,1.60243582]
[1745188914512,0.00088687,84605.0,84604.0,1.50251582]
[1745188914717,0.00088687,84605.0,84604.0,1.57185459]
[1745188915028,0.00088687,84605.0,84604.0,1.60229927]
[1745188915198,0.00088687,84605.0,84604.0,1.57181459]
[1745188926811,0.00088687,84605.0,84604.0,1.47291459]
[1745188927001,0.00088687,84605.0,84604.0,1.37311459]
[1745188927147,0.00088687,84605.0,84604.0,1.47291459]
[1745188927507,0.00088687,84605.0,84604.0,1.13291459]
[1745188928099,0.12133478,84605.0,84604.0,1.13291459]
[1745188930545,0.11333478,84605.0,84604.0,1.13291459]
[1745188932700,0.0008432,84606.0,84604.0,1.13291459]
[1745188933003,0.0008432,84606.0,84604.0,1.13391459]
[1745188938229,0.0008432,84609.0,84604.0,1.13391459]
[1745188939891,0.0008432,84609.0,84605.0,0.0455]
[1745188940055,0.0008432,84609.0,84606.0,0.01733988]
[1745188940478,0.0008432,84609.0,84606.0,0.01833988]
[1745188942942,0.0008432,84609.0,84607.0,0.09976]
[1745188943172,0.0008432,84609.0,84608.0,0.01734144]
[1745188943513,0.0008432,84609.0,84608.0,0.01834144]
[1745188945094,0.0008432,84609.0,84608.0,1.03034144]
[1745188947946,0.0008432,84609.0,84608.0,1.13010144]
[1745188948722,0.0008432,84609.0,84608.0,1.12910144]
[1745188961030,0.0008432,84609.0,84608.0,1.13010144]
[1745188972278,0.0008432,84609.0,84608.0,1.17810144]
[1745188973727,0.000843,84615.0,84608.0,1.18178725]
[1745188974024,0.00088806,84615.0,84608.0,1.18078725]
[1745188974676,0.00088806,84615.0,84608.0,1.17710144]
[1745188975530,0.00088806,84615.0,84609.0,0.3436858]
[1745188975725,0.00088806,84615.0,84610.0,0.01733692]
[1745188976026,0.00088806,84615.0,84609.0,0.3446858]
[1745188976227,0.00088806,84615.0,84611.0,0.01733692]
[1745188976404,0.00088806,84615.0,84609.0,0.3446858]
[1745188976588,0.00088806,84615.0,84612.0,0.01733692]
[1745188976792,0.00088806,84615.0,84609.0,0.341]
[1745188977018,0.00088806,84615.0,84613.0,0.01733692]
[1745188977219,0.00088806,84615.0,84609.0,0.341]
[1745188977392,0.00088806,84615.0,84614.0,0.01733692]
[1745188977593,0.00088806,84615.0,84609.0,0.341]
[1745188978152,0.00088806,84615.0,84610.0,0.01733692]
[1745188978305,0.00088806,84615.0,84610.0,0.002]
[1745188978507,0.00088806,84615.0,84611.0,0.06693225]
[1745188978903,0.00088806,84615.0,84611.0,0.06893225]
[1745188988354,0.00088806,84615.0,84612.0,0.0479]
[1745188988498,0.00088806,84615.0,84612.0,0.06508946]
[1745188988693,0.00088806,84615.0,84612.0,0.06708946]
[1745188988950,0.00088806,84615.0,84613.0,0.11944791]
[1745188989150,0.00088806,84615.0,84613.0,0.13663347]
[1745188989313,0.00088806,84615.0,84613.0,0.13863347]
[1745188992074,0.00088806,84615.0,84614.0,0.37042263]
[1745188992269,0.00088806,84615.0,84614.0,0.5069501]
[1745188992438,0.00088806,84615.0,84614.0,0.5089501]
[1745188995290,0.00088806,84615.0,84614.0,0.47852747]
[1745188997445,0.00088806,84615.0,84614.0,0.11779956]
[1745189000921,0.04811446,84628.0,84614.0,0.11779956]
[1745189001130,0.04815952,84628.0,84614.0,0.11779956]
[1745189006956,0.04815952,84628.0,84615.0,1.01184]
[1745189007231,0.04815952,84628.0,84615.0,1.02887639]
[1745189007439,0.04815952,84628.0,84615.0,1.02987639]
[1745189010918,0.04815952,84628.0,84616.0,0.34]
[1745189011114,0.04815952,84628.0,84616.0,0.35703445]
[1745189011319,0.04815952,84628.0,84616.0,0.35803445]
[1745189016496,0.04815952,84628.0,84617.0,0.09972]
[1745189016698,0.04815952,84628.0,84618.0,0.01702467]
[1745189017224,0.04815952,84628.0,84618.0,0.01802467]
[1745189020609,4.506e-05,84628.0,84618.0,0.35802467]
[1745189021253,4.506e-05,84628.0,84620.0,0.34]
[1745189021628,4.506e-05,84628.0,84620.0,0.341]
[1745189021824,4.506e-05,84628.0,84621.0,0.01702467]
[1745189022285,4.506e-05,84628.0,84621.0,0.01802467]
[1745189026093,4.506e-05,84628.0,84622.0,0.09972]
[1745189026439,4.506e-05,84628.0,84623.0,0.01699746]
[1745189026939,4.506e-05,84628.0,84623.0,0.01799746]
[1745189030872,4.506e-05,84628.0,84624.0,1.0118]
[1745189031207,4.506e-05,84628.0,84624.0,1.0128]
[1745189031408,4.506e-05,84628.0,84625.0,0.01699746]
[1745189031807,4.506e-05,84628.0,84625.0,0.01799746]
[1745189035754,4.506e-05,84628.0,84626.0,0.09968]
[1745189036180,4.506e-05,84628.0,84626.0,0.10068]
[1745189036429,4.506e-05,84628.0,84627.0,0.35699746]
[1745189039781,4.506e-05,84628.0,84627.0,0.36875532]
[1745189039984,4.506e-05,84628.0,84627.0,0.36975532]
[1745189040496,4.506e-05,84628.0,84627.0,1.38155532]
[1745189041525,4.506e-05,84628.0,84627.0,1.38055532]
[1745189041526,0.11949297,84628.0,84627.0,1.38055532]
[1745189041702,0.16764693,84628.0,84627.0,1.38055532]
[1745189043279,0.16764693,84628.0,84627.0,1.38155532]
[1745189043512,0.16764693,84628.0,84627.0,1.38055532]
[1745189049987,0.16469297,84628.0,84627.0,1.38055532]
[1745189050190,0.11949297,84628.0,84627.0,1.38055532]
[1745189051274,4.506e-05,84628.0,84627.0,1.38055532]
[1745189051577,4.506e-05,84628.0,84627.0,1.38155532]
[1745189060571,4.506e-05,84628.0,84627.0,1.48123532]
[1745189071080,4.506e-05,84628.0,84627.0,1.48023532]
[1745189071241,4.506e-05,84628.0,84627.0,1.48123532]
[1745189103138,4.506e-05,84628.0,84627.0,1.48023532]
[1745189103979,4.506e-05,84628.0,84627.0,1.48123532]
[1745189108119,4.506e-05,84628.0,84627.0,1.48023532]
[1745189108322,4.506e-05,84628.0,84627.0,1.48123532]
[1745189112729,0.11949297,84628.0,84627.0,1.02879746]
[1745189112938,0.21574712,84628.0,84627.0,1.02879746]
[1745189113146,0.21574712,84628.0,84627.0,1.12847746]
[1745189116569,0.63194712,84628.0,84627.0,1.12847746]
[1745189116751,0.62899297,84628.0,84627.0,1.12847746]
[1745189116952,0.62899297,84628.0,84627.0,1.11148]
[1745189117275,0.62899297,84628.0,84627.0,1.12853347]
[1745189118362,0.64353382,84628.0,84627.0,1.02885347]
[1745189118571,0.64453382,84628.0,84627.0,1.12853347]
[1745189118770,0.64453382,84628.0,84627.0,1.02885347]
[1745189118939,0.98453382,84628.0,84627.0,1.02885347]
[1745189122255,0.35454085,84625.0,84623.0,0.09968]
[1745189122459,0.5104027,84624.0,84623.0,0.09968]
[1745189122834,0.50744791,84624.0,84623.0,0.09968]
[1745189122972,0.50844791,84624.0,84623.0,0.09968]
[1745189125819,0.18198876,84624.0,84623.0,0.09968]
[1745189126185,0.17040263,84624.0,84623.0,0.09968]
[1745189126305,0.12240263,84624.0,84623.0,0.09968]
[1745189128117,0.52154916,84624.0,84623.0,0.09968]
[1745189128318,0.51859444,84624.0,84623.0,0.09968]
[1745189131991,0.51859444,84624.0,84623.0,0.10068]
[1745189136960,0.51859444,84624.0,84623.0,0.09968]
[1745189137203,0.51859444,84624.0,84623.0,0.10068]
[1745189153144,0.51859444,84624.0,84623.0,0.10168]
[1745189153301,0.51859444,84624.0,84623.0,0.11622848]
[1745189155246,0.51859444,84624.0,84623.0,0.1279159]
[1745189157437,0.11944791,84624.0,84623.0,0.1279159]
[1745189162987,0.11944791,84624.0,84623.0,0.1269159]
[1745189164897,0.11944791,84624.0,84623.0,0.11522848]
[1745189186475,0.00299934,84628.0,84623.0,0.16552848]
[1745189186476,4.506e-05,84628.0,84623.0,0.16552848]
[1745189186679,4.506e-05,84628.0,84624.0,0.0485]
[1745189186977,4.506e-05,84628.0,84625.0,0.01439543]
[1745189187387,4.506e-05,84628.0,84625.0,0.01539543]
[1745189191041,4.506e-05,84628.0,84625.0,0.01439543]
[1745189191241,4.506e-05,84628.0,84625.0,0.01539543]
[1745189195721,4.506e-05,84628.0,84625.0,0.01639543]
[1745189198596,4.506e-05,84628.0,84626.0,0.09964]
[1745189199015,4.506e-05,84628.0,84627.0,0.01434981]
[1745189199383,4.506e-05,84628.0,84627.0,0.01634981]
[1745189203072,4.506e-05,84628.0,84627.0,0.01534981]
[1745189206717,4.506e-05,84628.0,84627.0,1.02722981]
[1745189211489,4.506e-05,84628.0,84627.0,1.12686981]
[1745189221867,4.506e-05,84628.0,84627.0,1.17726981]
[1745189222072,4.506e-05,84628.0,84627.0,1.17626981]
[1745189224104,4.506e-05,84628.0,84627.0,1.51626981]
[1745189250058,4.506e-05,84628.0,84627.0,1.51726981]
[1745189250455,4.506e-05,84628.0,84627.0,1.5478166]
[1745189251071,4.506e-05,84628.0,84627.0,1.5468166]
[1745189251281,4.506e-05,84628.0,84627.0,1.4481766]
[1745189251484,4.506e-05,84628.0,84627.0,1.5477366]
[1745189256409,4.506e-05,84628.0,84627.0,1.5457366]
[1745189256595,4.506e-05,84628.0,84627.0,1.5477366]
[1745189259488,4.506e-05,84628.0,84627.0,1.4973366]
[1745189259695,4.506e-05,84628.0,84627.0,1.46678981]
[1745189259901,4.506e-05,84628.0,84627.0,1.46674981]
[1745189260968,0.11949297,84628.0,84627.0,1.46674981]
[1745189261180,0.11949297,84628.0,84627.0,1.46574981]
[1745189261313,0.12244712,84628.0,84627.0,1.12574981]
[1745189263778,0.11444712,84628.0,84627.0,1.12574981]
[1745189271373,0.10444712,84628.0,84627.0,1.12574981]
[1745189271676,0.10149297,84628.0,84627.0,1.12574981]
[1745189272174,0.09349297,84628.0,84627.0,1.12574981]
[1745189280005,0.08549297,84628.0,84627.0,1.12574981]
[1745189281417,0.08844712,84628.0,84627.0,1.12574981]
[1745189285179,0.13794712,84628.0,84627.0,1.02622981]
[1745189285368,0.13894712,84628.0,84627.0,1.12574981]
[1745189285627,0.13894712,84628.0,84627.0,1.1114]
[1745189286029,0.13894712,84628.0,84627.0,1.12334347]
[1745189289418,0.53809365,84628.0,84627.0,1.12334347]
[1745189289634,0.5351395,84628.0,84627.0,1.12334347]
[1745189292066,0.5341395,84628.0,84627.0,1.12334347]
[1745189292269,0.5341395,84628.0,84627.0,1.02382347]
[1745189292432,0.5341395,84628.0,84627.0,1.12334347]
[1745189307079,0.5341395,84628.0,84627.0,0.11146347]
[1745189307260,0.5341395,84628.0,84627.0,0.09952]
[1745189308558,0.4846395,84628.0,84627.0,0.09952]
[1745189319447,0.49918035,84628.0,84627.0,0.09952]
[1745189319908,0.06044085,84621.0,84610.0,1.01208]
[1745189320112,0.11944791,84612.0,84611.0,0.09948]
[1745189320312,0.11944791,84612.0,84611.0,0.1125968]
[1745189320898,0.12841483,84612.0,84611.0,0.1125968]
[1745189322950,0.11944791,84612.0,84611.0,0.1125968]
[1745189323331,0.11944791,84612.0,84611.0,0.1135968]
[1745189332143,0.11944791,84612.0,84611.0,0.1125968]
[1745189345051,0.00295471,84624.0,84611.0,0.1125968]
[1745189345218,0.11944791,84623.0,84611.0,0.1125968]
[1745189345403,0.00295447,84622.0,84611.0,0.1125968]
[1745189345620,0.11944791,84621.0,84611.0,0.1125968]
[1745189345922,0.00295447,84620.0,84611.0,0.1125968]
[1745189346102,0.11944791,84619.0,84611.0,0.1125968]
[1745189357088,0.11944791,84619.0,84612.0,0.01211548]
[1745189357417,0.11944791,84619.0,84612.0,0.01311548]
[1745189370814,0.11944791,84619.0,84612.0,0.01211548]
[1745189371236,0.11944791,84619.0,84612.0,0.01311548]
[1745189374128,0.11944791,84619.0,84613.0,1.01204]
[1745189374661,0.11944791,84619.0,84614.0,0.01209425]
[1745189375018,0.11944791,84619.0,84614.0,0.01309425]
[1745189377395,0.39914653,84625.0,84616.0,0.0473]
[1745189377601,0.11944791,84623.0,84616.0,0.0473]
[1745189377754,0.11944791,84623.0,84617.0,0.01206954]
[1745189378161,0.11944791,84623.0,84617.0,0.01306954]
[1745189378562,0.11944791,84623.0,84618.0,0.0994]
[1745189378979,0.11944791,84623.0,84619.0,0.01206354]
[1745189379383,0.11944791,84623.0,84619.0,0.01306354]
[1745189392934,0.39914653,84633.0,84619.0,0.01306354]
[1745189393235,0.11944791,84628.0,84619.0,0.01351742]
[1745189393397,0.11743595,84628.0,84619.0,0.01351742]
[1745189396547,0.11743595,84628.0,84620.0,1.01192]
[1745189396900,0.11743595,84628.0,84621.0,0.01201963]
[1745189397308,0.11743595,84628.0,84621.0,0.01301963]
[1745189400183,0.11743595,84628.0,84621.0,0.02507176]
[1745189401432,0.11743595,84628.0,84622.0,0.0994]
[1745189401834,0.11743595,84628.0,84623.0,0.01199794]
[1745189402257,0.11743595,84628.0,84623.0,0.01299794]
[1745189406210,0.11743595,84628.0,84624.0,1.01192]
[1745189406697,0.11743595,84628.0,84624.0,1.01292]
[1745189406877,0.11743595,84628.0,84625.0,0.01199794]
[1745189407283,0.11743595,84628.0,84625.0,0.01299794]
[1745189421575,0.11743595,84628.0,84626.0,0.09936]
[1745189421925,0.11743595,84628.0,84627.0,0.01198323]
[1745189422327,0.11743595,84628.0,84627.0,0.01298323]
[1745189424168,0.11738585,84628.0,84627.0,0.01298323]
[1745189429410,0.21723999,84628.0,84627.0,0.01198323]
[1745189429608,0.21723999,84628.0,84627.0,0.11134323]
[1745189429753,0.21723999,84628.0,84627.0,0.09936]
[1745189430101,0.21723999,84628.0,84627.0,0.11130851]
[1745189431547,0.21723999,84628.0,84627.0,0.11870328]
[1745189433254,0.61638652,84628.0,84627.0,0.11870328]
[1745189433452,0.61343238,84628.0,84627.0,0.11870328]
[1745189440427,0.61343238,84628.0,84627.0,0.01934328]
[1745189440626,0.61343238,84628.0,84627.0,0.11866328]
[1745189440948,0.61343238,84628.0,84627.0,0.11963889]
[1745189447226,0.51653238,84628.0,84627.0,0.11963889]
[1745189447559,0.51653238,84628.0,84627.0,0.12063889]
[1745189448179,0.51653238,84628.0,84627.0,0.16983889]
[1745189448409,0.51653238,84628.0,84627.0,0.21673889]
[1745189450774,0.11738585,84628.0,84627.0,0.21673889]
[1745189454936,0.11738585,84628.0,84627.0,0.12063889]
[1745189461956,0.11738585,84628.0,84627.0,1.13255889]
[1745189466933,0.16348585,84628.0,84627.0,1.13155889]
[1745189467723,0.16348585,84628.0,84627.0,1.13151889]
[1745189468169,0.16348585,84628.0,84627.0,1.03223889]
[1745189468371,0.56558664,84628.0,84627.0,1.13151889]
[1745189468572,0.56263238,84628.0,84627.0,1.03223889]
[1745189468776,0.56263238,84628.0,84627.0,1.13151889]
[1745189480025,0.56263238,84628.0,84627.0,0.11959889]
[1745189480407,0.56263238,84628.0,84627.0,0.09928]
[1745189485704,0.51653238,84628.0,84627.0,0.09928]
[1745189486326,0.00099256,84627.0,84619.0,0.00045388]
[1745189486631,0.12240239,84626.0,84620.0,0.11966881]
[1745189487013,0.12240239,84626.0,84620.0,0.12066881]
[1745189491859,0.39914653,84625.0,84620.0,0.12066881]
[1745189492060,0.12240235,84624.0,84620.0,0.12066881]
[1745189497749,0.39914653,84623.0,84620.0,0.12066881]
[1745189497890,0.12240235,84622.0,84620.0,0.12066881]
[1745189500618,0.11440235,84622.0,84620.0,0.12066881]
[1745189500902,0.11732756,84622.0,84620.0,0.12066881]
[1745189501664,0.00099256,84621.0,84620.0,0.12066881]
[1745189501887,0.12044047,84621.0,84620.0,0.12066881]
[1745189508444,0.11244047,84621.0,84620.0,0.12066881]
[1745189510237,0.11244047,84621.0,84620.0,0.12062881]
[1745189516026,0.10444047,84621.0,84620.0,0.12062881]
[1745189523760,0.09644047,84621.0,84620.0,0.12062881]
[1745189531441,0.39914653,84623.0,84620.0,0.02038881]
[1745189531734,0.20884791,84621.0,84620.0,0.02038881]
[1745189531878,0.20884791,84621.0,84620.0,0.11962881]
[1745189532231,0.21177312,84621.0,84620.0,0.11962881]
[1745189532936,0.22337601,84621.0,84620.0,0.11962881]
[1745189535859,0.62252254,84621.0,84620.0,0.11962881]
[1745189536057,0.61959733,84621.0,84620.0,0.11962881]
[1745189539938,0.51059444,84621.0,84620.0,0.11962881]
[1745189543618,0.51059444,84621.0,84620.0,0.12062881]
[1745189551025,0.51059444,84621.0,84620.0,0.11962881]
[1745189551232,0.51059444,84621.0,84620.0,0.12062881]
[1745189552428,0.51059444,84621.0,84620.0,0.02138881]
[1745189552755,0.51059444,84621.0,84620.0,0.12062881]
[1745189553699,0.51059444,84621.0,84620.0,0.12162881]
[1745189553935,0.39914653,84621.0,84620.0,0.12162881]
[1745189556147,0.39914653,84636.0,84620.0,0.12162881]
[1745189556355,0.11944791,84628.0,84621.0,0.04946317]
[1745189556566,0.11944791,84628.0,84621.0,0.06640459]
[1745189556771,0.11944791,84628.0,84621.0,0.06840459]
[1745189558301,0.39914653,84636.0,84622.0,0.0486]
[1745189558500,0.39914653,84636.0,84623.0,0.04946308]
[1745189558703,0.39914653,84636.0,84623.0,0.06637815]
[1745189558900,0.39914653,84636.0,84623.0,0.06837815]
[1745189560305,0.39914653,84636.0,84624.0,0.3871]
[1745189560507,0.39914653,84636.0,84625.0,0.00236305]
[1745189560916,0.39914653,84636.0,84626.0,0.01691178]
[1745189561235,0.39914653,84636.0,84627.0,0.00236305]
[1745189561752,0.39914653,84636.0,84628.0,0.01681141]
[1745189561902,0.39914653,84636.0,84627.0,0.002]
[1745189562105,0.39914653,84636.0,84628.0,0.01681306]
[1745189562313,0.39914653,84636.0,84627.0,0.00436305]
[1745189562522,0.39914653,84636.0,84628.0,0.01681142]
[1745189562709,0.39914653,84636.0,84627.0,0.00436305]
[1745189563023,0.39914653,84636.0,84628.0,0.01681142]
[1745189563404,0.39914653,84636.0,84628.0,0.002]
[1745189563645,0.39914653,84636.0,84628.0,0.01881142]
[1745189563827,0.39914653,84636.0,84628.0,0.002]
[1745189564025,0.39914653,84636.0,84628.0,0.01881142]
[1745189564233,0.39914653,84636.0,84628.0,0.002]
[1745189564432,0.39914653,84636.0,84628.0,0.01881142]
[1745189564665,0.39914653,84636.0,84628.0,0.002]
[1745189564874,0.39914653,84636.0,84628.0,0.01881142]
[1745189565104,0.39914653,84636.0,84628.0,0.001]
[1745189565299,0.39914653,84636.0,84628.0,0.11697142]
[1745189565517,0.39914653,84636.0,84628.0,0.10016]
[1745189565722,0.39914653,84636.0,84628.0,0.11697471]
[1745189573302,0.39914653,84636.0,84628.0,0.11797471]
[1745189573695,0.0008418,84637.0,84628.0,0.11797471]
[1745189573935,0.0008418,84637.0,84628.0,0.16757471]
[1745189576668,0.0008418,84637.0,84628.0,1.17941471]
[1745189578151,0.0008418,84637.0,84628.0,1.12981471]
[1745189580041,0.0008418,84637.0,84628.0,1.12881471]
[1745189580241,0.0008418,84637.0,84628.0,1.12981471]
[1745189581042,0.0008418,84637.0,84628.0,1.12881471]
[1745189586022,0.0008418,84637.0,84628.0,1.112]
[1745189586225,0.0008418,84637.0,84628.0,1.12857955]
[1745189602055,0.0008418,84637.0,84628.0,1.17517955]
[1745189602250,0.0008418,84637.0,84628.0,1.17617955]
[1745189602448,0.0008418,84637.0,84628.0,1.22487955]
[1745189602654,0.0008418,84637.0,84628.0,1.25543137]
[1745189606361,0.0008418,84637.0,84628.0,1.37487928]
[1745189608355,0.0008418,84637.0,84628.0,1.38942013]
[1745189610975,0.0008418,84637.0,84628.0,1.38742013]
[1745189611116,0.0008418,84637.0,84628.0,1.38942013]
[1745189614352,0.0008418,84637.0,84629.0,0.01454085]
[1745189614534,0.0008418,84637.0,84633.0,0.06374085]
[1745189614736,0.000684,84635.0,84633.0,0.27994918]
[1745189614999,0.000684,84635.0,84634.0,0.26124058]
[1745189615223,0.000684,84635.0,84634.0,0.27855376]
[1745189630315,0.000684,84635.0,84634.0,0.18085376]
[1745189631224,0.000684,84635.0,84634.0,0.27989376]
[1745189635872,0.000684,84635.0,84634.0,1.29137376]
[1745189636975,0.000684,84635.0,84634.0,1.63137376]
[1745189651831,0.0008418,84637.0,84635.0,0.01454085]
[1745189652051,0.000842,84639.0,84637.0,0.01454085]
[1745189652217,0.000842,84639.0,84638.0,0.16690284]
[1745189652425,0.000842,84639.0,84638.0,0.18305936]
[1745189655239,0.000842,84639.0,84638.0,0.28209936]
[1745189655459,0.000842,84639.0,84638.0,0.6197371]
[1745189659947,0.000842,84639.0,84638.0,1.6311771]
[1745189661372,0.000842,84639.0,84638.0,1.7263771]
[1745189668334,0.000842,84643.0,84639.0,0.01454085]
[1745189668539,0.00012181,84643.0,84641.0,0.01454085]
[1745189668670,0.00012181,84643.0,84642.0,0.16690271]
[1745189668871,0.00012181,84643.0,84642.0,0.1830231]
[1745189669459,0.00064781,84656.0,84643.0,0.01454085]
[1745189669747,0.00064781,84656.0,84646.0,0.1451558]
[1745189669924,0.00064781,84656.0,84647.0,0.15236186]
[1745189670126,0.00064781,84656.0,84648.0,0.03055182]
[1745189670280,0.00064781,84656.0,84649.0,0.00236213]
[1745189670495,0.00064781,84656.0,84650.0,0.03055182]
[1745189670745,0.00064781,84656.0,84651.0,0.00236213]
[1745189670963,0.00078303,84656.0,84652.0,0.03055182]
[1745189671168,0.00078303,84656.0,84653.0,0.00236213]
[1745189671345,0.00078303,84656.0,84654.0,0.03055182]
[1745189671529,0.00078303,84656.0,84655.0,0.00236212]
[1745189671731,0.00078303,84656.0,84655.0,0.04462513]
[1745189671929,0.00078303,84656.0,84655.0,0.06074885]
[1745189674285,0.00078303,84656.0,84655.0,0.15974885]
[1745189675522,0.00078303,84656.0,84655.0,0.12919703]
[1745189676459,0.00078303,84656.0,84655.0,0.12683491]
[1745189680264,0.00078303,84656.0,84655.0,1.13819491]
[1745189696362,0.00178303,84656.0,84655.0,1.03919491]
[1745189696563,0.00178303,84656.0,84655.0,1.13815491]
[1745189696861,0.04948303,84656.0,84655.0,1.13815491]
[1745189697400,0.00178303,84656.0,84655.0,1.13815491]
[1745189704971,0.00078303,84656.0,84655.0,1.13815491]
[1745189738837,0.00078303,84656.0,84655.0,1.03919491]
[1745189738991,0.00078303,84656.0,84655.0,1.13811491]
[1745189754093,0.00046703,84663.0,84655.0,1.13811491]
[1745189754308,0.00046703,84663.0,84655.0,1.13856879]
[1745189761352,0.00046703,84663.0,84656.0,0.09888]
[1745189761579,0.00046703,84663.0,84656.0,0.1150462]
[1745189766137,0.00046703,84663.0,84657.0,1.0114]
[1745189766504,0.00046703,84663.0,84658.0,0.0161662]
[1745189770890,0.00046703,84663.0,84659.0,0.09888]
[1745189771595,0.00046703,84663.0,84660.0,0.0161662]
[1745189776958,0.00046703,84663.0,84661.0,1.0114]
[1745189777362,0.00046703,84663.0,84662.0,0.0161662]
[1745189781640,0.00046703,84663.0,84662.0,0.1150462]
[1745189788365,0.00046703,84663.0,84662.0,0.11740834]
[1745189791676,0.00046703,84663.0,84662.0,0.45740834]
[1745189791914,0.00046703,84663.0,84662.0,0.4550462]
[1745189812925,0.04605103,84678.0,84662.0,0.1150462]
[1745189820133,0.04605103,84678.0,84663.0,1.01132]
[1745189820539,0.04605103,84678.0,84664.0,0.01606725]
[1745189824799,0.04605103,84678.0,84665.0,0.09884]
[1745189825154,0.04605103,84678.0,84666.0,0.01607911]
[1745189827434,0.04605103,84678.0,84667.0,0.09884]
[1745189827840,0.04605103,84678.0,84668.0,0.01607911]
[1745189828730,0.16584791,84677.0,84668.0,0.01607911]
[1745189828961,0.16877312,84677.0,84668.0,0.01607911]
[1745189829170,0.16877312,84677.0,84669.0,0.09884]
[1745189829570,0.16877312,84677.0,84670.0,0.01607746]
[1745189829971,0.16877312,84677.0,84669.0,0.09884]
[1745189830378,0.16877312,84677.0,84670.0,0.0160824]
[1745189830897,0.16877312,84677.0,84669.0,0.09884]
[1745189831099,0.0464,84675.0,84669.0,0.09884]
[1745189831239,0.00292521,84674.0,84670.0,0.0160824]
[1745189831443,0.00292521,84674.0,84669.0,0.09884]
[1745189831665,0.00392521,84674.0,84670.0,0.01607745]
[1745189832083,0.00392521,84674.0,84671.0,1.01132]
[1745189832263,0.00292521,84674.0,84671.0,1.01132]
[1745189832468,0.00392521,84674.0,84672.0,0.0160791]
[1745189838936,0.11944791,84673.0,84672.0,0.0160791]
[1745189839125,0.11944791,84673.0,84672.0,0.1149191]
[1745189839334,0.12044791,84673.0,84672.0,0.1149191]
[1745189839514,0.16964791,84673.0,84672.0,0.1149191]
[1745189843161,0.16864791,84673.0,84672.0,0.1149191]
[1745189843397,0.16964791,84673.0,84672.0,0.1149191]
[1745189843989,0.56879444,84673.0,84672.0,0.1149191]
[1745189850761,0.4383,84672.0,84655.0,0.00045388]
[1745189850947,0.53413529,84673.0,84663.0,0.0988]
[1745189850948,0.06374085,84664.0,84663.0,0.0988]
[1745189851190,0.6353605,84664.0,84663.0,0.0988]
[1745189851381,0.63243529,84664.0,84663.0,0.0988]
[1745189851769,0.64138935,84664.0,84663.0,0.0988]
[1745189852146,0.59218935,84664.0,84655.0,0.00045388]
[1745189852365,0.11944791,84658.0,84656.0,0.0988]
[1745189852526,0.00292521,84657.0,84656.0,0.0988]
[1745189852728,0.12237312,84657.0,84656.0,0.0988]
[1745189852944,0.12337312,84657.0,84656.0,0.0988]
[1745189855605,0.52251965,84657.0,84656.0,0.0988]
[1745189855817,0.51959444,84657.0,84656.0,0.0988]
[1745189863047,0.51859444,84657.0,84656.0,0.0988]
[1745189869457,0.51859444,84657.0,84656.0,0.1097265]
[1745189904258,0.51359444,84657.0,84656.0,0.1097265]